[Event "Live Chess"]
[Site "Chess.com"]
[Date "2024.06.02"]
[Round "-"]
[White "missedJariChance"]
[Black "blunderabit"]
[Result "0-1"]
[WhiteElo "1365"]
[BlackElo "1767"]
[TimeControl "300"]
[EndTime "7:50:49 PDT"]
[Termination "blunderabit won by resignation"]

1. b3 {[%clk 0:04:56]} 1... d5 {[%clk 0:04:55.7]} 2. Bb2 {[%clk 0:04:55]} 2...
c5 {[%clk 0:04:54]} 3. Nf3 {[%clk 0:04:53.7]} 3... Nc6 {[%clk 0:04:51.2]} 4. e3
{[%clk 0:04:52.6]} 4... f6 {[%clk 0:04:45.9]} 5. Be2 {[%clk 0:04:50.1]} 5... e6
{[%clk 0:04:43.7]} 6. c4 {[%clk 0:04:47.9]} 6... d4 {[%clk 0:04:37.5]} 7. exd4
{[%clk 0:04:41.7]} 7... cxd4 {[%clk 0:04:36.1]} 8. Nxd4 {[%clk 0:04:39.9]} 8...
Nxd4 {[%clk 0:04:33.3]} 9. O-O {[%clk 0:04:33.1]} 9... Nh6 {[%clk 0:04:15.1]}
10. Nc3 {[%clk 0:04:14.6]} 10... Be7 {[%clk 0:03:56.6]} 11. Bh5+ {[%clk
0:04:12.6]} 11... g6 {[%clk 0:03:48.8]} 12. Bf3 {[%clk 0:04:11]} 12... Nxf3+
{[%clk 0:03:41.1]} 13. Qxf3 {[%clk 0:04:09.7]} 13... O-O {[%clk 0:03:40.2]} 14.
Nb5 {[%clk 0:04:05.5]} 14... a6 {[%clk 0:03:32.8]} 15. Nd4 {[%clk 0:03:59.6]}
15... e5 {[%clk 0:03:29.9]} 16. Nc2 {[%clk 0:03:46.2]} 16... Nf5 {[%clk
0:03:10.8]} 17. Rad1 {[%clk 0:03:40.3]} 17... Rb8 {[%clk 0:03:00.1]} 18. Ne3
{[%clk 0:03:35.4]} 18... Nd4 {[%clk 0:02:53.3]} 19. Qg3 {[%clk 0:03:26.1]} 0-1

[Event "Live Chess"]
[Site "Chess.com"]
[Date "2024.06.02"]
[Round "-"]
[White "ProfPoisson"]
[Black "LL220284LL"]
[Result "0-1"]
[WhiteElo "1334"]
[BlackElo "2467"]
[TimeControl "300"]
[EndTime "7:50:50 PDT"]
[Termination "LL220284LL won by resignation"]

1. e4 {[%clk 0:04:55.5]} 1... d5 {[%clk 0:04:59.1]} 2. exd5 {[%clk 0:04:53.1]}
2... Qxd5 {[%clk 0:04:59]} 3. Nc3 {[%clk 0:04:51.6]} 3... Qa5 {[%clk 0:04:58]}
4. b4 {[%clk 0:04:49.6]} 4... Qxb4 {[%clk 0:04:56.4]} 5. Nb5 {[%clk 0:04:48.1]}
5... Na6 {[%clk 0:04:49.9]} 6. Ba3 {[%clk 0:04:44.7]} 6... Qe4+ {[%clk
0:04:46.7]} 7. Ne2 {[%clk 0:04:41.1]} 7... Nf6 {[%clk 0:04:34.8]} 8. Nc3 {[%clk
0:04:32.8]} 8... Qh4 {[%clk 0:04:26.1]} 9. Ng3 {[%clk 0:04:23.2]} 9... e5 {[%clk
0:04:14.7]} 10. Qe2 {[%clk 0:04:11.8]} 10... Bd6 {[%clk 0:04:10.4]} 11. Bxd6
{[%clk 0:04:07]} 11... cxd6 {[%clk 0:04:08.4]} 12. Nb5 {[%clk 0:04:04.3]} 12...
O-O {[%clk 0:04:05.5]} 13. Nxd6 {[%clk 0:04:01.2]} 13... Bg4 {[%clk 0:04:03.3]}
14. f3 {[%clk 0:03:54.2]} 14... Be6 {[%clk 0:03:54.4]} 15. O-O-O {[%clk
0:03:51]} 15... Qb4 {[%clk 0:03:50.6]} 16. Nde4 {[%clk 0:03:28.2]} 16... Qa3+
{[%clk 0:03:48.5]} 0-1

[Event "Live Chess"]
[Site "Chess.com"]
[Date "2024.06.02"]
[Round "-"]
[White "Cruiseylee78"]
[Black "NAZRIZ1977"]
[Result "1-0"]
[WhiteElo "1694"]
[BlackElo "2065"]
[TimeControl "300"]
[EndTime "7:50:51 PDT"]
[Termination "Cruiseylee78 won - game abandoned"]

1. d4 {[%clk 0:04:58.2]} 1... d5 {[%clk 0:04:53.6]} 2. Bf4 {[%clk 0:04:56.7]}
2... e6 {[%clk 0:04:52.2]} 3. e3 {[%clk 0:04:55.9]} 3... f5 {[%clk 0:04:51.6]}
4. Bd3 {[%clk 0:04:54.2]} 4... Nf6 {[%clk 0:04:50.9]} 5. Nf3 {[%clk 0:04:52]}
5... Bd6 {[%clk 0:04:49.3]} 6. Bg3 {[%clk 0:04:50.9]} 6... O-O {[%clk
0:04:45.6]} 7. Nbd2 {[%clk 0:04:50.4]} 7... c6 {[%clk 0:04:43.6]} 8. c3 {[%clk
0:04:49.6]} 8... Qe7 {[%clk 0:04:41.8]} 9. Qc2 {[%clk 0:04:48.7]} 9... Nbd7
{[%clk 0:04:38.6]} 10. Ne5 {[%clk 0:04:44.1]} 10... Ne4 {[%clk 0:04:37.3]} 11.
f3 {[%clk 0:04:38.5]} 11... Nxd2 {[%clk 0:04:30.7]} 12. Qxd2 {[%clk 0:04:37.1]}
12... Nf6 {[%clk 0:04:28.1]} 13. Qc2 {[%clk 0:04:28.3]} 13... Bd7 {[%clk
0:04:26.1]} 14. Bh4 {[%clk 0:04:24.8]} 14... Qe8 {[%clk 0:04:17.1]} 15. h3
{[%clk 0:04:12.3]} 15... c5 {[%clk 0:04:15]} 16. f4 {[%clk 0:04:02.4]} 16... Ne4
{[%clk 0:04:02.5]} 17. Rg1 {[%clk 0:03:51.2]} 17... Qh5 {[%clk 0:03:51.8]} 18.
g3 {[%clk 0:03:35.4]} 18... Bxe5 {[%clk 0:03:49.6]} 19. fxe5 {[%clk 0:03:29.7]}
19... Rfc8 {[%clk 0:03:45.4]} 20. Be2 {[%clk 0:03:28]} 20... Qh6 {[%clk
0:03:41.6]} 21. g4 {[%clk 0:03:10]} 21... Qxe3 {[%clk 0:03:38.4]} 22. gxf5
{[%clk 0:03:00.7]} 1-0

[Event "Live Chess"]
[Site "Chess.com"]
[Date "2024.06.02"]
[Round "-"]
[White "agamilewska"]
[Black "DJ_Lambton"]
[Result "1-0"]
[WhiteElo "1785"]
[BlackElo "1794"]
[TimeControl "300"]
[EndTime "7:50:53 PDT"]
[Termination "agamilewska won by resignation"]

1. d4 {[%clk 0:04:57.5]} 1... d5 {[%clk 0:04:58.6]} 2. Nf3 {[%clk 0:04:56]} 2...
c6 {[%clk 0:04:57.4]} 3. Bf4 {[%clk 0:04:55.5]} 3... Nf6 {[%clk 0:04:55.5]} 4.
e3 {[%clk 0:04:54.1]} 4... Bf5 {[%clk 0:04:54.6]} 5. c4 {[%clk 0:04:52.8]} 5...
e6 {[%clk 0:04:53.7]} 6. Nc3 {[%clk 0:04:52.2]} 6... Bd6 {[%clk 0:04:52.6]} 7.
Bg3 {[%clk 0:04:49.5]} 7... Qc7 {[%clk 0:04:51.8]} 8. c5 {[%clk 0:04:47]} 8...
Bxg3 {[%clk 0:04:50.7]} 9. hxg3 {[%clk 0:04:45.2]} 9... Nbd7 {[%clk 0:04:50.2]}
10. Bd3 {[%clk 0:04:38.6]} 10... Bxd3 {[%clk 0:04:49.1]} 11. Qxd3 {[%clk
0:04:37.7]} 11... b6 {[%clk 0:04:48.1]} 12. e4 {[%clk 0:04:31.8]} 12... bxc5
{[%clk 0:04:41.8]} 13. e5 {[%clk 0:04:26.1]} 13... Ne4 {[%clk 0:04:39.8]} 14.
Nxe4 {[%clk 0:04:22.8]} 14... dxe4 {[%clk 0:04:39.2]} 15. Qxe4 {[%clk 0:04:21]}
15... cxd4 {[%clk 0:04:38.7]} 16. Rxh7 {[%clk 0:04:14.9]} 16... Rxh7 {[%clk
0:04:34.4]} 17. Qxh7 {[%clk 0:04:13.9]} 17... Ke7 {[%clk 0:04:33]} 18. Qg6
{[%clk 0:04:11.2]} 18... Nxe5 {[%clk 0:04:31]} 19. Qxg7 {[%clk 0:04:05.5]} 19...
Nxf3+ {[%clk 0:04:30.1]} 20. gxf3 {[%clk 0:04:04.1]} 20... Qa5+ {[%clk
0:04:28.5]} 21. Kf1 {[%clk 0:04:02.7]} 21... Qd2 {[%clk 0:04:25.7]} 22. Re1
{[%clk 0:03:54.7]} 22... c5 {[%clk 0:04:22.3]} 23. f4 {[%clk 0:03:53.7]} 23...
Qxb2 {[%clk 0:04:19.4]} 24. Qg5+ {[%clk 0:03:51.8]} 24... Kf8 {[%clk 0:04:14.9]}
25. Qe5 {[%clk 0:03:47.8]} 25... Qb5+ {[%clk 0:04:10]} 26. Kg1 {[%clk
0:03:44.9]} 26... Rb8 {[%clk 0:04:07.9]} 27. Qd6+ {[%clk 0:03:39.6]} 27... Kg7
{[%clk 0:04:06.1]} 28. Qe5+ {[%clk 0:03:34.9]} 28... Kf8 {[%clk 0:04:04]} 29.
Rc1 {[%clk 0:03:25]} 29... Rc8 {[%clk 0:03:39.6]} 30. Qh8+ {[%clk 0:03:21.8]}
30... Ke7 {[%clk 0:03:35.1]} 31. Qxc8 {[%clk 0:03:20.8]} 31... Qe2 {[%clk
0:03:33.2]} 32. Qxc5+ {[%clk 0:03:18.2]} 32... Kf6 {[%clk 0:03:32.1]} 33. Qxd4+
{[%clk 0:03:16.7]} 33... Kg6 {[%clk 0:03:31.8]} 34. f5+ {[%clk 0:03:09.9]} 34...
exf5 {[%clk 0:03:30.8]} 35. Rc6+ {[%clk 0:03:05.9]} 1-0

[Event "Live Chess"]
[Site "Chess.com"]
[Date "2024.06.02"]
[Round "-"]
[White "NottheBishopSacrifice"]
[Black "goldinspiredphoenix"]
[Result "1-0"]
[WhiteElo "2340"]
[BlackElo "1501"]
[TimeControl "300"]
[EndTime "7:50:58 PDT"]
[Termination "NottheBishopSacrifice won by resignation"]

1. d4 {[%clk 0:04:56.4]} 1... d5 {[%clk 0:04:58.6]} 2. Nf3 {[%clk 0:04:56]} 2...
c5 {[%clk 0:04:57.5]} 3. c4 {[%clk 0:04:55]} 3... e6 {[%clk 0:04:54.6]} 4. cxd5
{[%clk 0:04:53.8]} 4... exd5 {[%clk 0:04:53]} 5. Nc3 {[%clk 0:04:53.5]} 5...
cxd4 {[%clk 0:04:50.5]} 6. Nxd4 {[%clk 0:04:51.9]} 6... Nf6 {[%clk 0:04:49.7]}
7. g3 {[%clk 0:04:50.8]} 7... Nc6 {[%clk 0:04:48.4]} 8. Bg2 {[%clk 0:04:49.7]}
8... Be6 {[%clk 0:04:47.9]} 9. O-O {[%clk 0:04:47.6]} 9... Bc5 {[%clk
0:04:47.3]} 10. Be3 {[%clk 0:04:45.7]} 10... Bxd4 {[%clk 0:04:42.2]} 11. Bxd4
{[%clk 0:04:44.4]} 11... Nxd4 {[%clk 0:04:37.9]} 12. Qxd4 {[%clk 0:04:44.3]}
12... O-O {[%clk 0:04:32.5]} 13. Rfd1 {[%clk 0:04:43.3]} 13... Qb6 {[%clk
0:04:20.6]} 14. Qxb6 {[%clk 0:04:41.1]} 14... axb6 {[%clk 0:04:18.5]} 15. a3
{[%clk 0:04:40.6]} 15... Rfd8 {[%clk 0:04:14.8]} 16. e3 {[%clk 0:04:37.4]} 16...
Kf8 {[%clk 0:04:09.1]} 17. Rd4 {[%clk 0:04:35.7]} 17... Rd7 {[%clk 0:04:05.2]}
18. Rad1 {[%clk 0:04:34.8]} 18... Rad8 {[%clk 0:04:04.1]} 19. Rb4 {[%clk
0:04:33.4]} 19... Rd6 {[%clk 0:04:02.1]} 20. Rdd4 {[%clk 0:04:32.3]} 20... Ke7
{[%clk 0:03:59.9]} 21. h4 {[%clk 0:04:27.3]} 21... h6 {[%clk 0:03:48.5]} 22. Rb5
{[%clk 0:04:19.6]} 22... R8d7 {[%clk 0:03:35.7]} 23. Rdb4 {[%clk 0:04:17.4]}
23... d4 {[%clk 0:03:31.9]} 24. exd4 {[%clk 0:04:15]} 24... Rxd4 {[%clk
0:03:28.3]} 25. Rxd4 {[%clk 0:04:13.7]} 25... Rxd4 {[%clk 0:03:26.9]} 26. Rxb6
{[%clk 0:04:10.8]} 26... Rd1+ {[%clk 0:03:25.3]} 27. Nxd1 {[%clk 0:04:09]} 27...
Bc8 {[%clk 0:03:19]} 28. Bxb7 {[%clk 0:04:06.8]} 28... Bxb7 {[%clk 0:03:17.5]}
29. Rxb7+ {[%clk 0:04:06.7]} 29... Kf8 {[%clk 0:03:15.1]} 30. a4 {[%clk
0:04:06.6]} 30... Ne8 {[%clk 0:03:13.7]} 31. a5 {[%clk 0:04:05.6]} 31... Nd6
{[%clk 0:03:12.5]} 32. a6 {[%clk 0:04:05.5]} 32... Nxb7 {[%clk 0:03:11.4]} 33.
axb7 {[%clk 0:04:05.4]} 33... Ke7 {[%clk 0:03:10.7]} 34. b8=Q {[%clk 0:04:05.2]}
34... Kd7 {[%clk 0:03:09.7]} 35. b4 {[%clk 0:04:04.8]} 35... Ke6 {[%clk
0:03:08.8]} 36. b5 {[%clk 0:04:04.7]} 1-0

[Event "Live Chess"]
[Site "Chess.com"]
[Date "2024.06.02"]
[Round "-"]
[White "Zhevzh1k7"]
[Black "FlyingChessKestrel13"]
[Result "0-1"]
[WhiteElo "1112"]
[BlackElo "2062"]
[TimeControl "300"]
[EndTime "7:51:16 PDT"]
[Termination "FlyingChessKestrel13 won by resignation"]

1. e4 {[%clk 0:04:56.5]} 1... d6 {[%clk 0:04:59.9]} 2. Nf3 {[%clk 0:04:54.5]}
2... g6 {[%clk 0:04:59.2]} 3. Bc4 {[%clk 0:04:53.5]} 3... Bg7 {[%clk 0:04:58.5]}
4. d4 {[%clk 0:04:50.4]} 4... Nf6 {[%clk 0:04:58]} 5. Nc3 {[%clk 0:04:47.1]}
5... O-O {[%clk 0:04:57.6]} 6. O-O {[%clk 0:04:45.2]} 6... Nxe4 {[%clk
0:04:56.8]} 7. Nxe4 {[%clk 0:04:43.6]} 7... d5 {[%clk 0:04:56.2]} 8. Bxd5 {[%clk
0:04:40.3]} 8... Qxd5 {[%clk 0:04:55.6]} 9. Qd3 {[%clk 0:04:36.6]} 9... Bf5
{[%clk 0:04:49.6]} 10. Nc3 {[%clk 0:04:22.3]} 10... Bxd3 {[%clk 0:04:41.3]} 11.
Nxd5 {[%clk 0:04:20.9]} 11... Bxf1 {[%clk 0:04:40.3]} 12. Nxc7 {[%clk 0:04:18]}
12... Bc4 {[%clk 0:04:33.6]} 13. Nxa8 {[%clk 0:04:16.1]} 13... Na6 {[%clk
0:04:32.8]} 14. b3 {[%clk 0:04:08.6]} 14... Bd5 {[%clk 0:04:30.3]} 15. c4 {[%clk
0:03:52.8]} 15... Bxf3 {[%clk 0:04:29]} 16. gxf3 {[%clk 0:03:51.4]} 16... Bxd4
{[%clk 0:04:27.7]} 17. Rb1 {[%clk 0:03:44.1]} 17... Rxa8 {[%clk 0:04:25]} 18.
Bg5 {[%clk 0:03:39.6]} 18... Bf6 {[%clk 0:04:22.9]} 19. Bxf6 {[%clk 0:03:38]}
19... exf6 {[%clk 0:04:22.2]} 20. b4 {[%clk 0:03:36.5]} 20... Rc8 {[%clk
0:04:20.5]} 21. b5 {[%clk 0:03:33.7]} 21... Nc5 {[%clk 0:04:18.6]} 22. b6 {[%clk
0:03:30.5]} 22... a6 {[%clk 0:04:17]} 23. Rd1 {[%clk 0:03:24.6]} 23... Ne6
{[%clk 0:03:52.3]} 24. Rd7 {[%clk 0:03:17]} 24... Rxc4 {[%clk 0:03:50.8]} 25.
Rxb7 {[%clk 0:03:15.4]} 25... Rb4 {[%clk 0:03:49.9]} 26. a3 {[%clk 0:03:11.7]}
26... Rb3 {[%clk 0:03:48.4]} 27. a4 {[%clk 0:03:10.2]} 27... Kg7 {[%clk
0:03:46.5]} 28. a5 {[%clk 0:03:06.1]} 28... Rb5 {[%clk 0:03:45]} 29. Rb8 {[%clk
0:02:58.3]} 29... Rxa5 {[%clk 0:03:43.8]} 30. b7 {[%clk 0:02:57.3]} 30... Rb5
{[%clk 0:03:42.9]} 31. Ra8 {[%clk 0:02:49.7]} 31... Rxb7 {[%clk 0:03:41]} 32.
Rxa6 {[%clk 0:02:48.2]} 32... Rb3 {[%clk 0:03:40.4]} 33. Rd6 {[%clk 0:02:46.3]}
33... Rxf3 {[%clk 0:03:37.9]} 34. Kg2 {[%clk 0:02:45.1]} 34... Rf5 {[%clk
0:03:37.1]} 0-1

[Event "Live Chess"]
[Site "Chess.com"]
[Date "2024.06.02"]
[Round "-"]
[White "80Times"]
[Black "Larchikov"]
[Result "0-1"]
[WhiteElo "1871"]
[BlackElo "2106"]
[TimeControl "300"]
[EndTime "7:51:16 PDT"]
[Termination "Larchikov won by resignation"]

1. e4 {[%clk 0:04:57.6]} 1... c6 {[%clk 0:04:54.2]} 2. Nc3 {[%clk 0:04:55.4]}
2... d5 {[%clk 0:04:53.6]} 3. Nf3 {[%clk 0:04:54.9]} 3... d4 {[%clk 0:04:52]} 4.
Ne2 {[%clk 0:04:53.9]} 4... c5 {[%clk 0:04:50.9]} 5. Ng3 {[%clk 0:04:53.1]} 5...
Nc6 {[%clk 0:04:50.2]} 6. h3 {[%clk 0:04:45.7]} 6... Nf6 {[%clk 0:04:47.9]} 7.
a3 {[%clk 0:04:38.4]} 7... e6 {[%clk 0:04:46.3]} 8. Bc4 {[%clk 0:04:32.8]} 8...
Bd6 {[%clk 0:04:43.7]} 9. d3 {[%clk 0:04:30.1]} 9... Qc7 {[%clk 0:04:36.6]} 10.
Ne2 {[%clk 0:04:11.1]} 10... O-O {[%clk 0:04:28]} 11. Bb5 {[%clk 0:04:04.4]}
11... Bd7 {[%clk 0:04:21.5]} 12. Bxc6 {[%clk 0:04:02.6]} 12... Bxc6 {[%clk
0:04:18.4]} 13. O-O {[%clk 0:03:59.2]} 13... Nh5 {[%clk 0:04:12.8]} 14. g4
{[%clk 0:03:45]} 14... Nf4 {[%clk 0:04:09.7]} 15. Nxf4 {[%clk 0:03:41.4]} 15...
Bxf4 {[%clk 0:04:09.6]} 16. Kg2 {[%clk 0:03:37.7]} 16... f5 {[%clk 0:04:06.9]}
17. Re1 {[%clk 0:03:28.3]} 17... Rf7 {[%clk 0:03:59.5]} 18. g5 {[%clk
0:03:14.2]} 18... fxe4 {[%clk 0:03:55.4]} 19. dxe4 {[%clk 0:03:14.1]} 19... Raf8
{[%clk 0:03:53.2]} 0-1

[Event "Live Chess"]
[Site "Chess.com"]
[Date "2024.06.02"]
[Round "-"]
[White "lateforthesky"]
[Black "MagnersCarlsberg2870"]
[Result "1-0"]
[WhiteElo "2080"]
[BlackElo "1765"]
[TimeControl "300"]
[EndTime "7:51:27 PDT"]
[Termination "lateforthesky won by resignation"]

1. e4 {[%clk 0:04:55.6]} 1... e5 {[%clk 0:04:58.1]} 2. Nf3 {[%clk 0:04:53.8]}
2... Nf6 {[%clk 0:04:56.9]} 3. d4 {[%clk 0:04:48.9]} 3... exd4 {[%clk
0:04:50.2]} 4. e5 {[%clk 0:04:46.8]} 4... Bb4+ {[%clk 0:04:43.4]} 5. c3 {[%clk
0:04:43.9]} 5... dxc3 {[%clk 0:04:42.4]} 6. bxc3 {[%clk 0:04:42.5]} 6... Bxc3+
{[%clk 0:04:36.5]} 7. Nxc3 {[%clk 0:04:40.7]} 7... Qe7 {[%clk 0:04:33.8]} 8. Be2
{[%clk 0:04:32.7]} 8... Qxe5 {[%clk 0:04:28.3]} 9. Nxe5 {[%clk 0:04:30.2]} 9...
d6 {[%clk 0:04:27.6]} 10. Nf3 {[%clk 0:04:25.1]} 10... Bg4 {[%clk 0:04:26.3]}
11. h3 {[%clk 0:04:23.6]} 1-0

[Event "Live Chess"]
[Site "Chess.com"]
[Date "2024.06.02"]
[Round "-"]
[White "joellloyd"]
[Black "ivan_1968"]
[Result "1-0"]
[WhiteElo "1912"]
[BlackElo "1796"]
[TimeControl "300"]
[EndTime "7:51:29 PDT"]
[Termination "joellloyd won on time"]

1. e4 {[%clk 0:04:59.5]} 1... c6 {[%clk 0:04:56.6]} 2. d4 {[%clk 0:04:58.8]}
2... d5 {[%clk 0:04:56.5]} 3. e5 {[%clk 0:04:58.2]} 3... Bf5 {[%clk 0:04:55.1]}
4. h4 {[%clk 0:04:57.5]} 4... h5 {[%clk 0:04:53.7]} 5. Bd3 {[%clk 0:04:56.6]}
5... Bxd3 {[%clk 0:04:52.3]} 6. Qxd3 {[%clk 0:04:56.5]} 6... e6 {[%clk
0:04:51.5]} 7. Bg5 {[%clk 0:04:56]} 7... Qb6 {[%clk 0:04:50.3]} 8. Nd2 {[%clk
0:04:55.3]} 8... Nd7 {[%clk 0:04:47.2]} 9. Ngf3 {[%clk 0:04:53.8]} 9... Ne7
{[%clk 0:04:45.5]} 10. O-O {[%clk 0:04:52.2]} 10... Nf5 {[%clk 0:04:43.4]} 11.
Rfe1 {[%clk 0:04:48.1]} 11... c5 {[%clk 0:04:35.2]} 12. c4 {[%clk 0:04:47]}
12... Nxd4 {[%clk 0:03:59.7]} 13. Nxd4 {[%clk 0:04:43.5]} 13... cxd4 {[%clk
0:03:58.2]} 14. cxd5 {[%clk 0:04:43.4]} 14... Nc5 {[%clk 0:02:30.1]} 15. Qxd4
{[%clk 0:04:31]} 15... exd5 {[%clk 0:02:29.3]} 16. Qxd5 {[%clk 0:04:11]} 16...
Ne6 {[%clk 0:02:27.8]} 17. Nc4 {[%clk 0:04:01.4]} 17... Qc5 {[%clk 0:02:12.9]}
18. Qxb7 {[%clk 0:03:52.9]} 18... Rc8 {[%clk 0:01:32.6]} 19. Nd6+ {[%clk
0:03:48.4]} 19... Bxd6 {[%clk 0:01:30.8]} 20. exd6 {[%clk 0:03:48.3]} 20... O-O
{[%clk 0:01:29.2]} 21. Rac1 {[%clk 0:03:35.5]} 21... Rb8 {[%clk 0:00:48.6]} 22.
Qxb8 {[%clk 0:03:19.2]} 22... Rxb8 {[%clk 0:00:42.2]} 23. Rxc5 {[%clk 0:03:18]}
23... Nxc5 {[%clk 0:00:41.6]} 24. Re7 {[%clk 0:03:00.1]} 24... f6 {[%clk
0:00:35]} 25. Be3 {[%clk 0:02:56.2]} 25... Nb7 {[%clk 0:00:25.6]} 26. d7 {[%clk
0:02:53]} 26... Rd8 {[%clk 0:00:23.1]} 27. Bxa7 {[%clk 0:02:48.8]} 27... Kf8
{[%clk 0:00:17.6]} 28. Re8+ {[%clk 0:02:39.3]} 28... Rxe8 {[%clk 0:00:17.5]} 29.
dxe8=Q+ {[%clk 0:02:39.1]} 29... Kxe8 {[%clk 0:00:16.3]} 30. Bd4 {[%clk
0:02:37.5]} 30... Kd7 {[%clk 0:00:14.9]} 31. f3 {[%clk 0:02:35.4]} 31... Kc6
{[%clk 0:00:13.9]} 32. g4 {[%clk 0:02:34.2]} 32... hxg4 {[%clk 0:00:12.1]} 33.
fxg4 {[%clk 0:02:34.1]} 33... Kd5 {[%clk 0:00:11.2]} 34. Bc3 {[%clk 0:02:32.9]}
34... Nc5 {[%clk 0:00:10.2]} 35. Kf2 {[%clk 0:02:25.9]} 35... Ne4+ {[%clk
0:00:09.6]} 36. Ke3 {[%clk 0:02:24.9]} 36... Nd6 {[%clk 0:00:03.9]} 37. a4
{[%clk 0:02:21.5]} 1-0

[Event "Live Chess"]
[Site "Chess.com"]
[Date "2024.06.02"]
[Round "-"]
[White "Colm_Buckley"]
[Black "booktrunk"]
[Result "1-0"]
[WhiteElo "1879"]
[BlackElo "1493"]
[TimeControl "300"]
[EndTime "7:51:37 PDT"]
[Termination "Colm_Buckley won by resignation"]

1. d4 {[%clk 0:04:58]} 1... b6 {[%clk 0:04:54.6]} 2. c4 {[%clk 0:04:56.9]} 2...
Bb7 {[%clk 0:04:51.3]} 3. Nc3 {[%clk 0:04:56.5]} 3... e6 {[%clk 0:04:48.2]} 4.
e4 {[%clk 0:04:54.2]} 4... h6 {[%clk 0:04:46.3]} 5. Nf3 {[%clk 0:04:51.7]} 5...
Nf6 {[%clk 0:04:43.9]} 6. Bd3 {[%clk 0:04:50.3]} 6... Bb4 {[%clk 0:04:42.3]} 7.
d5 {[%clk 0:04:40.2]} 7... exd5 {[%clk 0:04:39.8]} 8. cxd5 {[%clk 0:04:38]} 8...
Qe7 {[%clk 0:04:36.5]} 9. O-O {[%clk 0:04:31.5]} 9... O-O {[%clk 0:04:33.3]} 10.
Re1 {[%clk 0:04:22.1]} 10... Bxc3 {[%clk 0:04:30.7]} 11. bxc3 {[%clk 0:04:20.4]}
11... Qd8 {[%clk 0:04:29.7]} 12. Qc2 {[%clk 0:04:16.8]} 12... c6 {[%clk
0:04:20.6]} 13. c4 {[%clk 0:04:09.8]} 13... cxd5 {[%clk 0:04:18.5]} 14. exd5
{[%clk 0:04:08.5]} 14... Re8 {[%clk 0:04:13.4]} 15. Bb2 {[%clk 0:04:03.3]} 15...
Rxe1+ {[%clk 0:04:10.6]} 16. Rxe1 {[%clk 0:04:00.7]} 16... Qf8 {[%clk
0:04:05.4]} 17. Bxf6 {[%clk 0:03:53.8]} 17... gxf6 {[%clk 0:04:03.7]} 18. Nd4
{[%clk 0:03:45.8]} 18... Na6 {[%clk 0:04:01.6]} 19. Qd2 {[%clk 0:03:31.9]} 19...
Re8 {[%clk 0:04:00.4]} 20. Rxe8 {[%clk 0:03:27.2]} 20... Qxe8 {[%clk 0:03:59.1]}
21. h3 {[%clk 0:03:20.9]} 21... Kg7 {[%clk 0:03:56.1]} 22. Nf5+ {[%clk
0:03:15.1]} 22... Kg8 {[%clk 0:03:49.8]} 23. Qxh6 {[%clk 0:03:04.9]} 23... Qe1+
{[%clk 0:03:47.9]} 24. Kh2 {[%clk 0:03:03.9]} 24... Qe5+ {[%clk 0:03:46.6]} 25.
g3 {[%clk 0:02:59.6]} 1-0

[Event "Live Chess"]
[Site "Chess.com"]
[Date "2024.06.02"]
[Round "-"]
[White "wadsy27"]
[Black "JohanKjeldahl"]
[Result "1-0"]
[WhiteElo "2603"]
[BlackElo "1801"]
[TimeControl "300"]
[EndTime "7:51:49 PDT"]
[Termination "wadsy27 won by resignation"]

1. c4 {[%clk 0:04:58.6]} 1... e5 {[%clk 0:04:57.6]} 2. g3 {[%clk 0:04:57.4]}
2... Nc6 {[%clk 0:04:55.3]} 3. Nc3 {[%clk 0:04:53.5]} 3... Nf6 {[%clk
0:04:54.1]} 4. Bg2 {[%clk 0:04:52.8]} 4... d6 {[%clk 0:04:51.8]} 5. Nf3 {[%clk
0:04:51.6]} 5... g6 {[%clk 0:04:50.7]} 6. O-O {[%clk 0:04:51.2]} 6... Bg7 {[%clk
0:04:49.7]} 7. d3 {[%clk 0:04:51]} 7... O-O {[%clk 0:04:48.5]} 8. Rb1 {[%clk
0:04:50]} 8... Be6 {[%clk 0:04:46.2]} 9. b4 {[%clk 0:04:48.3]} 9... a6 {[%clk
0:04:44.9]} 10. a4 {[%clk 0:04:47.2]} 10... Ne8 {[%clk 0:04:37.6]} 11. b5 {[%clk
0:04:45.3]} 11... axb5 {[%clk 0:04:36.6]} 12. axb5 {[%clk 0:04:45.2]} 12... Nd4
{[%clk 0:04:35]} 13. Nxd4 {[%clk 0:04:44.2]} 13... exd4 {[%clk 0:04:34]} 14. Nd5
{[%clk 0:04:42.9]} 14... f5 {[%clk 0:04:14.4]} 15. Nf4 {[%clk 0:04:38.7]} 15...
Bd7 {[%clk 0:04:11.4]} 16. Bxb7 {[%clk 0:04:37]} 16... Rb8 {[%clk 0:04:05.6]}
17. Bd5+ {[%clk 0:04:35.7]} 17... Kh8 {[%clk 0:04:04.3]} 18. Bb2 {[%clk
0:04:31.6]} 18... Nf6 {[%clk 0:03:31.1]} 19. Bg2 {[%clk 0:04:29]} 19... Ng4
{[%clk 0:03:25.6]} 20. h3 {[%clk 0:04:26.4]} 20... Nh6 {[%clk 0:03:24.1]} 21.
Ra1 {[%clk 0:04:24.7]} 21... Qe8 {[%clk 0:03:16.8]} 22. Ra7 {[%clk 0:04:22.6]}
22... Rc8 {[%clk 0:03:10.8]} 23. Nd5 {[%clk 0:04:20.7]} 23... Be5 {[%clk
0:03:03]} 24. Nxc7 {[%clk 0:04:18.6]} 24... Qd8 {[%clk 0:02:56.5]} 25. Nd5
{[%clk 0:04:16.8]} 25... f4 {[%clk 0:02:54.7]} 26. gxf4 {[%clk 0:04:15.2]} 26...
Bxf4 {[%clk 0:02:53.4]} 27. Bxd4+ {[%clk 0:04:11.9]} 27... Kg8 {[%clk
0:02:50.8]} 28. Nxf4 {[%clk 0:04:02.6]} 28... Rxf4 {[%clk 0:02:48.5]} 29. Be3
{[%clk 0:04:00.3]} 29... Rh4 {[%clk 0:02:47]} 30. Qd2 {[%clk 0:03:32.7]} 30...
Nf5 {[%clk 0:02:41.1]} 31. Bg5 {[%clk 0:03:30.5]} 1-0

[Event "Live Chess"]
[Site "Chess.com"]
[Date "2024.06.02"]
[Round "-"]
[White "RichardABates"]
[Black "stevochess11"]
[Result "1-0"]
[WhiteElo "2378"]
[BlackElo "1693"]
[TimeControl "300"]
[EndTime "7:51:56 PDT"]
[Termination "RichardABates won by resignation"]

1. d4 {[%clk 0:04:57.9]} 1... Nf6 {[%clk 0:04:58.5]} 2. Nf3 {[%clk 0:04:55.7]}
2... g6 {[%clk 0:04:57.2]} 3. c4 {[%clk 0:04:54.4]} 3... Bg7 {[%clk 0:04:54.5]}
4. g3 {[%clk 0:04:52.5]} 4... O-O {[%clk 0:04:51.4]} 5. Bg2 {[%clk 0:04:51.3]}
5... d6 {[%clk 0:04:50.5]} 6. O-O {[%clk 0:04:49.9]} 6... Nc6 {[%clk 0:04:46]}
7. Nc3 {[%clk 0:04:48]} 7... e5 {[%clk 0:04:36]} 8. dxe5 {[%clk 0:04:45.5]} 8...
dxe5 {[%clk 0:04:32.9]} 9. Bg5 {[%clk 0:04:43.7]} 9... Qxd1 {[%clk 0:04:26.3]}
10. Rfxd1 {[%clk 0:04:38.1]} 10... Be6 {[%clk 0:04:23]} 11. Nd5 {[%clk
0:04:35.4]} 11... Bxd5 {[%clk 0:04:15.1]} 12. cxd5 {[%clk 0:04:33.4]} 12... e4
{[%clk 0:04:11.1]} 13. dxc6 {[%clk 0:04:30.5]} 13... exf3 {[%clk 0:04:09.8]} 14.
Bxf3 {[%clk 0:04:29.3]} 14... bxc6 {[%clk 0:04:06.8]} 15. Bxc6 {[%clk
0:04:27.7]} 15... Rab8 {[%clk 0:04:03.6]} 16. Rab1 {[%clk 0:04:16.9]} 16... Ng4
{[%clk 0:03:58.2]} 17. b3 {[%clk 0:04:06.4]} 17... Ne5 {[%clk 0:03:41]} 18. Bg2
{[%clk 0:04:02.8]} 18... Rfe8 {[%clk 0:03:35.5]} 19. Rbc1 {[%clk 0:03:57.6]}
19... c6 {[%clk 0:03:24.8]} 20. Bf4 {[%clk 0:03:50.5]} 20... Ng4 {[%clk
0:03:16]} 21. h3 {[%clk 0:03:46.4]} 21... Nh6 {[%clk 0:03:09.6]} 22. Bxb8 {[%clk
0:03:40.9]} 22... Rxb8 {[%clk 0:03:05.3]} 23. Rxc6 {[%clk 0:03:39.2]} 1-0